bitfinex/quotes_ETHUSD_20241207
["timestamp","ask_amount","ask_price","bid_price","bid_amount"]
[1733590531974,2.49933,4001.6,4000.3,0.0249948]
[1733590531975,1.74944,4001.3,4000.3,0.0249948]
[1733590532174,2.49933,4001.6,4000.2,0.7602]
[1733590532477,1.74949,4001.2,4000.3,0.2761202]
[1733590533099,1.74938,4001.4,4000.3,0.2761202]
[1733590533317,2.4992,4001.9,4000.4,0.7602]
[1733590534290,1.74939,4001.4,4000.4,0.7602]
[1733590534999,1.74966,4000.8,4000.4,0.7602]
[1733590538981,0.75,4001.5,4000.4,0.7602]
[1733590539181,0.24993,4001.4,4000.4,0.7602]
[1733590539402,0.75,4001.3,4000.4,0.7602]
[1733590539608,1.74974,4000.6,3999.6,0.7602]
[1733590542428,0.8212,4000.7,3999.6,0.7602]
[1733590542636,1.74979,4000.5,3999.6,0.7602]
[1733590542817,1.74979,4000.5,3999.7,0.58963596]
[1733590543488,0.8212,4000.7,3999.8,0.8082]
[1733590543696,0.8212,4001.0,3999.8,0.8082]
[1733590544217,1.74973,4000.7,3999.8,0.8082]
[1733590545526,1.74974,4000.6,3999.8,0.8082]
[1733590545732,1.74974,4000.6,3999.9,0.24442213]
[1733590547427,1.74988,4000.3,3999.9,0.24442213]
[1733590547726,1.74988,4000.3,3999.8,0.8082]
[1733590547934,0.8212,4000.3,3999.8,0.8082]
[1733590548095,1.74987,4000.3,3999.8,0.8082]
[1733590549528,1.74992,4000.2,3999.8,0.8082]
[1733590556517,2.57089,4000.7,3999.8,0.8082]
[1733590556518,1.07994764,4000.6,3999.8,0.8082]
[1733590556824,1.75005,3999.9,3999.5,1.04638537]
[1733590557044,1.75005,3999.9,3999.4,1.85458537]
[1733590557248,1.75005,3999.9,3999.4,0.8082]
[1733590557626,1.01131476,4000.5,3999.4,0.8082]
[1733590557824,1.75009,3999.8,3999.4,0.8082]
[1733590558022,1.75011,3999.8,3999.4,0.8082]
[1733590559165,2.57121,4000.0,3999.2,1.04638537]
[1733590559460,2.57121,4000.0,3999.1,1.85458537]
[1733590559461,0.175011,3999.8,3999.1,1.85458537]
[1733590559641,1.75031,3999.3,3999.1,0.8082]
[1733590560259,1.75031,3999.3,3998.8,2.93453301]
[1733590560465,0.8212,4000.0,3998.8,2.93453301]
[1733590560769,1.75035,3999.2,3998.8,2.93453301]
[1733590561766,0.38212,3999.9,3998.8,1.85458537]
[1733590561973,1.75046,3999.0,3998.8,0.8082]
[1733590562831,1.75,4000.0,3998.4,1.04638537]
[1733590562832,0.764,3998.9,3998.4,1.04638537]
[1733590563064,0.764,3998.9,3998.1,1.04638537]
[1733590563233,0.764,3998.9,3997.9,1.80078537]
[1733590563573,1.75063,3998.6,3997.9,0.7544]
[1733590563740,1.75063,3998.6,3998.0,0.3505733]
[1733590564068,1.75057,3998.7,3998.0,0.3505733]
[1733590566172,0.764,3999.3,3998.1,0.7794102]
[1733590566477,0.764,3999.3,3998.4,0.7544]
[1733590567154,1.75041,3999.1,3998.4,0.7544]
[1733590567352,1.75041,3999.1,3998.5,0.18343476]
[1733590567567,1.7503,3999.3,3998.7,0.7544]
[1733590568042,0.764,3999.6,3998.7,0.7544]
[1733590568043,2.51421,3999.6,3998.7,0.7544]
[1733590568244,1.75021,3999.6,3998.7,0.7544]
[1733590569141,1.75006,3999.9,3999.2,1.07994764]
[1733590569339,1.75006,3999.9,3999.3,0.7544]
[1733590571680,0.764,4000.2,3999.3,0.7544]
[1733590571981,1.74996,4000.1,3999.3,0.7544]
[1733590572276,1.75002,4000.0,3999.3,0.7544]
[1733590573341,0.764,4000.2,3999.3,0.7544]
[1733590573342,1.75004,3999.9,3999.3,0.7544]
[1733590573942,1.74996,4000.1,3999.3,0.7544]
[1733590574159,0.764,4000.2,3999.3,0.7544]
[1733590574341,1.75005,3999.9,3999.3,0.7544]
[1733590574759,1.75015,3999.7,3998.6,0.7984]
[1733590575059,1.75004,3999.9,3998.9,2.34053682]
[1733590575260,1.75004,3999.9,3999.0,0.82340282]
[1733590575498,0.764,4000.2,3999.0,0.82340282]
[1733590575799,1.74995,4000.1,3999.0,0.7984]
[1733590576003,1.74995,4000.1,3999.0,1.28734068]
[1733590576300,1.74987,4000.3,3999.2,0.7984]
[1733590577796,0.8313,4000.6,3999.2,0.7984]
[1733590577797,3.8313,4000.6,3999.2,0.7984]
[1733590577999,1.74991,4000.2,3999.2,0.7984]
[1733590578873,3.0,4000.5,3999.2,0.7984]
[1733590579066,1.74996,4000.1,3999.2,0.7984]
[1733590579663,1.75,4000.0,3999.2,0.7984]
[1733590579864,2.5813,4000.0,3999.2,0.7984]
[1733590580167,1.75,4000.0,3999.2,0.7984]
[1733590580725,1.74991,4000.2,3999.2,0.7984]
[1733590580901,0.4889172,4000.1,3999.2,0.7984]
[1733590581263,1.75002,4000.0,3999.2,0.7984]
[1733590581771,0.4889172,4000.1,3999.2,0.7984]
[1733590581976,1.75004,3999.9,3999.2,0.7984]
[1733590582687,0.4889172,4000.1,3999.2,0.7984]
[1733590583007,1.7501,3999.8,3999.2,0.7984]
[1733590584001,1.75,4000.0,3999.2,0.7984]
[1733590584302,1.0451131,4000.7,3999.2,0.7984]
[1733590584303,1.74993,4000.2,3999.2,0.7984]
[1733590584464,1.74995,4000.1,3999.2,0.7984]
[1733590585308,1.74984,4000.4,3999.3,0.807]
[1733590586105,1.74987,4000.3,3999.3,0.807]
[1733590586902,0.7508,4000.6,3999.3,0.807]
[1733590586903,3.7508,4000.6,3999.3,0.807]
[1733590587144,1.74991,4000.2,3999.3,0.807]
[1733590588423,3.550049,4000.5,3999.3,0.807]
[1733590588424,1.74995,4000.1,3999.3,0.807]
[1733590590610,1.74995,4000.1,3999.6,1.08002044]
[1733590592834,3.550049,4000.5,3999.6,1.08002044]
[1733590593004,1.75009,3999.8,3999.5,1.08002044]
[1733590594906,0.550049,4000.5,3999.3,0.807]
[1733590594907,1.75013,3999.7,3999.3,0.807]
[1733590595124,1.75013,3999.7,3999.3,1.88702044]
[1733590595909,1.75018,3999.6,3999.3,1.88702044]
[1733590596102,1.75026,3999.4,3999.3,1.88702044]
[1733590596341,0.7508,3999.6,3998.9,0.807]
[1733590596656,1.75043,3999.0,3998.9,0.807]
[1733590597904,1.75043,3999.0,3998.8,1.08002044]
[1733590599550,1.75056,3998.7,3998.6,0.807]
[1733590599708,1.75053,3998.8,3998.6,0.807]
[1733590600954,3.0,3999.5,3998.6,0.807]
[1733590601158,1.7504,3999.1,3998.8,1.08002044]
[1733590602558,3.0,3999.5,3998.8,1.08002044]
[1733590602559,1.7503,3999.4,3998.8,1.08002044]
[1733590603058,1.7503,3999.3,3998.8,1.08002044]
[1733590603424,0.7508,3999.6,3998.8,1.08002044]
[1733590603618,1.75027,3999.4,3998.8,1.08002044]
[1733590604854,1.75018,3999.6,3999.2,0.7615]
[1733590605228,1.75008,3999.8,3999.2,0.7615]
[1733590607335,3.0,4000.1,3999.2,0.7615]
[1733590607548,3.0,3999.9,3999.2,0.7615]
[1733590607850,1.75019,3999.6,3999.1,1.08002044]
[1733590608427,1.75027,3999.4,3999.1,1.08002044]
[1733590608755,1.75013,3999.7,3998.9,0.7615]
[1733590608913,1.75032,3999.3,3998.9,0.7615]
[1733590610458,1.75036,3999.2,3998.9,0.7615]
[1733590611027,1.75036,3999.2,3998.8,1.08002044]
[1733590615578,2.38952441,3999.8,3998.8,1.08002044]
[1733590615579,1.75025,3999.5,3999.1,1.08002044]
[1733590615781,1.75026,3999.4,3999.1,1.08002044]
[1733590620687,1.34441131,3999.8,3999.1,1.08002044]
[1733590620933,0.71395944,3999.7,3999.1,1.08002044]
[1733590621040,1.75032,3999.3,3999.1,1.08002044]
[1733590622967,1.75022,3999.5,3999.1,1.08002044]
[1733590623377,1.75026,3999.4,3999.1,1.08002044]
[1733590625501,2.515,3999.8,3999.2,0.8175]
[1733590625702,1.7501,3999.8,3999.4,1.08002044]
[1733590626353,1.8574131,4000.2,3999.7,1.08002044]
[1733590626650,1.75005,3999.9,3999.7,1.08002044]
[1733590630452,1.74995,4000.2,3999.7,1.08002044]
[1733590630651,1.0451131,4000.4,3999.7,1.89752044]
[1733590630897,1.74996,4000.1,3999.7,1.89752044]
[1733590631453,1.74987,4000.3,3999.7,1.89752044]
[1733590632698,1.74992,4000.2,3999.7,1.89752044]
[1733590638809,1.74997,4000.1,3999.7,1.89752044]
[1733590639009,1.75,4000.0,3999.7,1.89752044]
[1733590641019,1.75,4000.0,3999.7,1.08002044]
[1733590642314,1.29965831,4000.3,3999.4,0.7925]
[1733590642498,1.75005,3999.9,3999.4,0.7925]
[1733590649237,1.0451131,4000.2,3999.4,0.7925]
[1733590649437,1.75009,3999.8,3999.4,0.7925]
[1733590651625,1.0451131,4000.2,3999.4,0.7925]
[1733590651831,1.7501,3999.8,3999.4,0.7925]
[1733590653358,1.75013,3999.7,3999.4,0.7925]
[1733590655668,1.75021,3999.5,3999.1,1.82908537]
[1733590655971,1.75021,3999.5,3999.2,1.08002044]
[1733590658588,1.75014,3999.7,3999.2,1.08002044]
[1733590658750,1.75008,3999.8,3999.5,1.08002044]
[1733590659987,1.0451131,4000.1,3999.6,0.7827]
[1733590659988,1.75,4000.0,3999.6,0.7827]
[1733590663547,1.0451131,4000.1,3999.8,1.08002044]
[1733590664057,1.0451131,4000.2,3999.8,1.08002044]
[1733590664975,1.0451131,4000.2,4000.1,1.08002044]
[1733590665282,1.0451131,4000.2,3999.8,1.08002044]
[1733590666752,2.7950331,4000.2,3999.8,1.08002044]
[1733590669810,1.74992,4000.2,3999.8,1.08002044]
[1733590670298,2.7950331,4000.2,3999.8,1.08002044]
[1733590670601,1.74992,4000.2,3999.8,1.08002044]
[1733590670775,1.0451131,4000.3,3999.8,1.08002044]
[1733590671691,1.0451131,4000.3,3999.8,1.37093102]
[1733590672258,1.0451131,4000.2,3999.8,1.37093102]
[1733590672664,1.0451131,4000.3,3999.8,1.37093102]
[1733590673406,1.0451131,4000.2,3999.8,1.37093102]
[1733590673640,2.7949831,4000.3,3999.8,1.08002044]
[1733590673803,1.0451131,4000.2,3999.8,1.08002044]
[1733590674920,1.75,4000.0,3999.8,1.08002044]
[1733590678715,1.75004,3999.9,3999.8,1.08002044]
[1733590679789,1.75004,3999.9,3999.6,0.7827]
[1733590682518,2.7950731,4000.1,3999.6,0.7827]
[1733590682887,1.74996,4000.1,3999.6,0.7827]
[1733590683128,1.74996,4000.1,3999.6,1.82908537]
[1733590683490,1.74996,4000.1,3999.6,0.7827]
[1733590684196,2.7950731,4000.1,3999.6,0.7827]
[1733590684392,1.74996,4000.1,3999.6,0.7827]
[1733590684589,1.74996,4000.1,3999.6,1.82908537]
[1733590685037,1.74996,4000.1,3999.6,0.7827]
[1733590685756,1.74996,4000.1,3999.6,1.82908537]
[1733590686035,1.74996,4000.1,3999.6,0.7827]
[1733590686744,1.74996,4000.1,3999.6,1.82908537]
[1733590687041,1.74996,4000.1,3999.8,1.08002044]
[1733590689399,1.0451131,4000.2,3999.8,1.08002044]
[1733590689600,1.0451131,4000.3,3999.8,1.37093102]
[1733590689821,1.0451131,4000.4,3999.8,1.37093102]
[1733590690021,1.0451131,4000.4,3999.8,1.08002044]
[1733590691147,2.7949531,4000.4,3999.8,1.08002044]
[1733590691939,1.74987,4000.3,3999.8,1.08002044]
[1733590692237,1.74992,4000.2,3999.8,1.08002044]
[1733590693856,1.75002,4000.0,3999.7,1.08002044]
[1733590699455,1.8518131,4000.1,3999.4,1.04638537]
[1733590699624,1.75021,3999.5,3999.3,1.86228537]
[1733590699826,1.75021,3999.5,3999.3,0.8159]
[1733590700447,1.0451131,3999.9,3999.4,1.08002044]
[1733590700649,1.75014,3999.7,3999.4,1.08002044]
[1733590703957,1.0451131,3999.9,3999.4,1.08002044]
[1733590703958,1.75004,3999.9,3999.4,1.08002044]
[1733590704159,2.7950631,4000.1,3999.8,0.772]
[1733590709766,1.0451131,4000.1,3999.8,0.772]
[1733590710949,1.0451131,4000.2,3999.8,0.772]
[1733590711380,1.0451131,4000.1,3999.8,0.772]
[1733590712702,2.7950231,4000.2,3999.8,0.772]
[1733590713574,1.0451131,4000.2,3999.8,0.772]
[1733590713750,1.0451131,4000.2,4000.0,1.08002044]
[1733590714549,1.0451131,4000.3,4000.0,1.08002044]
[1733590716569,1.0451131,4000.2,4000.0,1.08002044]
[1733590717361,1.0451131,4000.3,4000.0,1.08002044]
[1733590719807,1.0451131,4000.3,3999.8,0.772]
[1733590720495,1.0451131,4000.3,4000.0,1.08002044]
[1733590720856,1.0451131,4000.3,4000.1,0.7813]
[1733590721460,1.0451131,4000.4,4000.1,0.7813]
[1733590721760,1.0451131,4000.3,4000.1,0.7813]
[1733590722485,1.0451131,4000.4,4000.1,0.7813]
[1733590723077,1.0451131,4000.4,4000.0,1.08002044]
[1733590724489,1.0451131,4000.5,4000.1,0.36323904]
[1733590725477,1.0451131,4000.4,4000.1,0.36323904]
[1733590726260,1.0451131,4000.5,4000.1,0.36323904]
[1733590726417,1.0451131,4000.4,4000.1,0.36323904]
[1733590726569,1.0451131,4000.4,4000.0,1.08002044]
[1733590727012,1.0451131,4000.5,4000.0,1.08002044]
[1733590727700,1.0451131,4000.5,4000.1,0.8023]
[1733590727902,1.0451131,4000.5,4000.1,2.55225]
[1733590729527,1.0451131,4000.6,4000.1,2.55225]
[1733590729897,1.0451131,4000.5,4000.3,1.08002044]
[1733590730106,1.0451131,4000.7,4000.4,1.74982]
[1733590730524,1.0451131,4000.8,4000.5,1.74974]
[1733590732442,1.0451131,4000.7,4000.3,2.82988044]
[1733590732602,1.0451131,4000.8,4000.3,2.82988044]
[1733590733349,1.0451131,4000.9,4000.7,1.88542044]
[1733590733697,1.0451131,4001.0,4000.7,3.63510044]
[1733590734635,1.0451131,4001.1,4000.7,1.88542044]
[1733590734932,1.0451131,4001.1,4000.8,1.74963]
[1733590735233,1.0451131,4001.2,4000.8,1.74963]
[1733590736436,1.0451131,4001.2,4000.9,1.74959]
[1733590736641,2.8790311,4001.6,4000.9,1.74959]
[1733590736642,1.0451131,4001.3,4000.9,1.74959]
[1733590737549,1.0451131,4001.4,4000.9,1.74959]
[1733590737753,1.0451131,4001.3,4000.9,1.74959]
[1733590737915,1.0451131,4001.4,4000.9,1.74959]
[1733590738116,1.0451131,4001.3,4000.9,1.74959]
[1733590738354,1.0451131,4001.4,4000.9,1.74959]
[1733590738554,1.0451131,4001.3,4000.9,1.74959]
[1733590739340,1.0451131,4001.3,4000.7,3.63510044]
[1733590739647,1.0451131,4001.2,4000.8,1.74964]
[1733590739950,1.0451131,4001.3,4000.8,1.74964]
[1733590741456,1.0451131,4001.4,4000.8,1.74964]
[1733590743855,1.0451131,4001.5,4000.8,1.74964]
[1733590745558,1.8488131,4001.4,4000.4,1.74981]
[1733590745766,0.51625714,4001.3,4000.4,1.74981]
[1733590745914,1.56137024,4001.3,4000.4,1.74981]
[1733590746427,1.56137024,4001.3,4000.3,0.8291]
[1733590746428,1.56137024,4001.3,4000.5,1.74975]
[1733590750275,1.0451131,4001.3,4000.5,1.74975]
[1733590750732,1.0451131,4001.3,4000.4,0.02499495]
[1733590751066,1.8488131,4001.4,4000.7,1.74968]
[1733590751241,1.8488131,4001.4,4000.8,1.74964]
[1733590755442,1.0451131,4001.3,4000.8,1.74964]
[1733590755638,1.8488131,4001.4,4000.8,1.74964]
[1733590756242,1.8488131,4001.4,4000.6,1.74973]
[1733590756444,1.0451131,4001.3,4000.6,1.74973]
[1733590756664,1.8488131,4001.4,4000.6,1.74973]
[1733590757076,1.0451131,4001.3,4000.6,1.74973]
[1733590759980,0.8037,4001.2,4000.1,1.74994]
[1733590760159,0.8037,4001.1,4000.1,1.74994]
[1733590760355,1.8488131,4001.1,4000.1,1.74994]
[1733590760885,1.0451131,4000.8,4000.1,1.74994]
[1733590761439,1.0451131,4000.9,4000.1,1.74994]
[1733590761757,1.0451131,4000.8,4000.1,1.74994]
[1733590762075,1.0451131,4000.8,4000.0,0.8291]
[1733590762696,1.0451131,4000.8,4000.0,2.57909]
[1733590763054,1.0451131,4000.7,4000.0,2.57909]
[1733590763577,1.0451131,4000.8,4000.0,2.57909]
[1733590764443,1.0451131,4000.7,4000.0,2.57909]
[1733590764947,1.0451131,4000.7,4000.0,3.65911044]
[1733590765739,1.0451131,4000.8,4000.0,3.65911044]
[1733590765943,1.0451131,4000.7,4000.0,3.65911044]
[1733590767141,0.7712,4000.6,4000.0,3.65911044]
[1733590767381,1.8163131,4000.6,4000.0,1.90912044]
[1733590767759,0.7712,4000.6,4000.0,1.90912044]
[1733590768099,1.8163131,4000.6,4000.0,1.90912044]
[1733590769304,2.15438924,4000.6,4000.0,0.8291]
[1733590769618,1.38318924,4000.6,4000.1,0.8123]
[1733590769793,1.0451131,4000.7,4000.1,2.56223]
[1733590770099,1.0451131,4000.8,4000.1,2.56223]
[1733590770304,1.0451131,4000.8,4000.1,0.8123]
[1733590770504,1.0451131,4000.7,4000.1,0.8123]
[1733590770660,1.0451131,4000.8,4000.1,0.8123]
[1733590770980,1.0451131,4000.7,4000.1,0.8123]
[1733590771372,1.0451131,4000.8,4000.1,2.56224]
[1733590772561,1.0451131,4000.8,4000.3,2.82987044]
[1733590772758,1.0451131,4000.8,4000.6,1.08002044]
[1733590773000,2.60956142,4001.0,4000.6,2.82974044]
[1733590773159,1.0451131,4001.0,4000.8,2.82966044]
[1733590773360,3.40057849,4001.6,4000.9,0.7799]
[1733590773361,1.0451131,4001.3,4000.9,0.7799]
[1733590773796,1.0451131,4001.4,4000.9,2.5295]
[1733590774204,1.0451131,4001.3,4000.9,2.5295]
[1733590774359,1.56444832,4001.5,4000.9,0.7799]
[1733590774360,1.0451131,4001.4,4000.9,0.7799]
[1733590779425,1.0451131,4001.4,4001.0,1.74955]
[1733590780695,0.7808,4001.9,4000.9,1.14085404]
[1733590780696,1.0451131,4001.5,4001.1,1.74951]
[1733590780934,1.0451131,4001.4,4001.1,1.74951]
[1733590781433,0.7808,4001.9,4001.1,1.74951]
[1733590781434,1.0451131,4001.5,4001.2,1.000083]
[1733590781800,1.0451131,4001.4,4001.2,1.000083]
[1733590782297,1.8157131,4001.3,4000.6,2.52072]
[1733590782535,1.8157131,4001.3,4000.7,1.000155]
[1733590782752,0.7706,4001.3,4000.7,1.000155]
[1733590782916,1.0451131,4001.4,4000.7,2.749815]
[1733590783249,1.0451131,4001.3,4000.7,2.749815]
[1733590783446,1.0451131,4001.3,4000.7,1.4627379]
[1733590783609,1.0451131,4001.4,4000.9,1.7496]
[1733590784832,1.0451131,4001.4,4000.7,2.54275834]
[1733590785041,1.0451131,4001.4,4000.8,1.74964]
[1733590787035,1.0451131,4001.3,4000.8,1.74964]
[1733590787239,1.03155614,4001.2,4000.7,1.000155]
[1733590787836,2.07666924,4001.2,4000.7,1.000155]
[1733590788019,1.03155614,4001.2,4000.7,1.000155]
[1733590788219,2.07666924,4001.2,4000.7,1.000155]
[1733590791126,1.8157131,4001.2,4000.7,1.000155]
[1733590794771,1.0451131,4001.2,4000.7,1.000155]
[1733590794927,1.0451131,4001.3,4000.8,0.771]
[1733590795263,1.0451131,4001.2,4000.8,0.771]
[1733590797527,1.0451131,4001.3,4000.8,0.771]
[1733590797841,1.0451131,4001.2,4000.8,0.771]
[1733590799259,1.0451131,4001.2,4000.7,1.000155]
[1733590799466,0.7706,4001.1,4000.7,1.000155]
[1733590799671,1.8157131,4001.1,4000.7,1.000155]
[1733590800182,0.7706,4001.1,4000.7,1.000155]
[1733590800335,0.7706,4001.1,4000.7,1.46024854]
[1733590801164,1.8157131,4001.1,4000.7,1.46024854]
[1733590801674,1.0451131,4001.2,4000.7,1.46024854]
[1733590802347,1.0451131,4001.1,4000.7,1.46024854]
[1733590803437,1.0451131,4001.1,4000.7,1.000155]
[1733590803673,0.7518,4001.0,4000.7,1.000155]
[1733590804078,1.7969131,4001.0,4000.7,1.000155]
[1733590804779,1.0451131,4000.9,4000.7,1.000155]
[1733590804969,1.7969131,4001.0,4000.7,1.000155]
[1733590806065,1.0451131,4000.9,4000.7,1.000155]
[1733590806592,1.0451131,4000.8,4000.7,1.000155]
[1733590806767,1.0451131,4000.9,4000.7,1.000155]
[1733590807279,1.0451131,4000.8,4000.7,1.000155]
[1733590807480,1.0451131,4000.9,4000.7,1.000155]
[1733590807666,1.76479035,4000.9,4000.7,1.000155]
[1733590807869,2.28412557,4000.9,4000.0,0.8156]
[1733590808098,2.28412557,4000.9,4000.2,1.000317]
[1733590808099,1.79962101,4000.7,4000.2,1.000317]
[1733590808296,1.04782101,4000.6,4000.2,1.000317]
[1733590811490,1.04782101,4000.7,4000.3,0.8156]
[1733590811807,2.8377311,4001.0,4000.4,1.08002044]
[1733590811808,1.04782101,4000.8,4000.4,1.08002044]
[1733590812518,1.04782101,4000.9,4000.4,1.54460818]
[1733590813683,1.04782101,4001.0,4000.4,1.54460818]
[1733590814011,1.04782101,4001.0,4000.4,1.08002044]
[1733590815070,1.04782101,4000.9,4000.4,1.08002044]
[1733590816192,1.04782101,4001.0,4000.4,1.08002044]
[1733590816897,1.04782101,4000.9,4000.4,1.08002044]
[1733590817097,1.56444832,4001.1,4000.4,1.08002044]
[1733590817098,1.04782101,4001.0,4000.4,1.08002044]
[1733590817269,1.04782101,4000.9,4000.4,1.08002044]
[1733590817476,1.04782101,4000.9,4000.4,1.54460418]
[1733590817906,1.04782101,4001.1,4000.4,1.54460418]
[1733590818207,1.04782101,4001.0,4000.4,1.54460418]
[1733590818925,1.04782101,4001.1,4000.4,3.29442418]
[1733590819070,1.04782101,4001.0,4000.4,3.29442418]
[1733590819270,1.04782101,4001.0,4000.5,0.51103412]
[1733590819502,0.7518,4001.3,4000.5,2.26076412]
[1733590819503,1.04782101,4001.1,4000.5,2.26076412]
[1733590819672,1.04782101,4001.2,4000.7,1.08002044]
[1733590820528,1.04782101,4001.3,4000.7,1.08002044]
[1733590820737,1.04782101,4001.2,4000.8,1.74965]
[1733590820887,1.04782101,4001.3,4000.8,1.74965]
[1733590821830,1.04782101,4001.2,4000.8,1.74965]
[1733590822025,1.04782101,4001.3,4000.8,1.74965]
[1733590823232,1.04782101,4001.3,4000.7,1.08002044]
[1733590823386,1.04782101,4001.2,4000.6,0.7618]
[1733590823586,1.04782101,4001.2,4000.6,2.51152]
[1733590824588,1.04782101,4001.0,4000.2,1.000317]
[1733590824886,1.04782101,4000.9,4000.2,1.000317]
[1733590825214,1.04782101,4000.8,4000.2,1.000317]
[1733590825790,1.04782101,4000.9,4000.4,1.08002044]
[1733590826213,1.04782101,4000.9,4000.3,0.7839]
[1733590827515,1.04782101,4000.9,4000.2,1.000317]
[1733590827516,0.8254,4000.8,4000.2,1.000317]
[1733590827723,1.26157993,4000.8,4000.2,1.000317]
[1733590827931,2.30940094,4000.8,4000.2,1.000317]
[1733590830211,1.87322101,4000.8,4000.2,1.000317]
[1733590830422,1.04782101,4000.7,4000.2,1.000317]
[1733590830623,3.62288101,4000.8,4000.2,1.000317]
[1733590830940,1.04782101,4000.7,4000.2,1.000317]
[1733590831101,2.57506,4000.8,4000.2,1.000317]
[1733590831102,1.04782101,4000.6,4000.2,1.000317]
[1733590833510,0.7716,4000.5,4000.2,1.000317]
[1733590833812,1.04782101,4000.4,4000.2,1.000317]
[1733590834605,3.03474993,4000.5,4000.2,1.000317]
[1733590834606,1.04782101,4000.3,4000.2,1.000317]
[1733590837215,2.79765101,4000.4,4000.2,1.000317]
[1733590837416,2.79768101,4000.3,4000.2,1.000317]
[1733590837612,3.56928101,4000.3,4000.2,1.000317]
[1733590837812,3.24342604,4000.3,4000.2,1.000317]
[1733590838412,4.29126047,4000.3,4000.2,1.000317]
[1733590842161,3.24342604,4000.3,4000.2,1.000317]
[1733590843966,4.29126047,4000.3,4000.2,1.000317]
[1733590844162,2.52146,4000.3,4000.2,1.000317]
[1733590844449,3.56929443,4000.3,4000.2,1.000317]
[1733590844821,2.52146,4000.3,4000.2,1.000317]
[1733590845961,0.7716,4000.3,4000.2,1.000317]
[1733590846486,2.79761443,4000.5,4000.2,1.000317]
[1733590847445,1.04783443,4000.6,4000.2,1.000317]
[1733590847750,1.04783443,4000.7,4000.3,0.8115]
[1733590848663,1.04783443,4000.7,4000.2,1.000317]
[1733590848861,1.74986,4000.3,4000.2,1.000317]
[1733590849820,2.79769443,4000.3,4000.2,1.000317]
[1733590850643,1.74986,4000.3,4000.2,1.000317]
[1733590850848,2.79769443,4000.3,4000.2,1.000317]
[1733590851535,1.74986,4000.3,4000.2,1.000317]
[1733590854977,1.04783443,4000.4,4000.2,1.000317]
[1733590855160,2.79765443,4000.4,4000.2,1.000317]
[1733590857884,1.74986,4000.3,4000.2,1.000317]
[1733590858147,3.56029443,4000.3,4000.2,1.000317]
[1733590858481,3.56029443,4000.3,3998.8,1.04638537]
[1733590858482,0.55,4000.0,3999.6,1.000567]
[1733590858648,1.04716389,3999.9,3999.6,1.000567]
[1733590858844,1.75012,3999.8,3999.6,1.000567]
[1733590859147,1.75013,3999.7,3999.6,1.000567]
[1733590860589,2.08485939,3999.7,3999.6,1.000567]
[1733590860745,1.09732939,3999.7,3998.8,0.8115]
[1733590860948,1.75018,3999.6,3998.8,0.8115]
[1733590861262,1.75018,3999.6,3998.9,1.000634]
[1733590861969,1.80976389,3999.7,3998.9,1.000634]
[1733590862169,1.04716389,3999.6,3998.9,1.000634]
[1733590862484,0.55,3999.4,3998.9,1.000634]
[1733590862696,1.75036,3999.2,3998.9,1.000634]
[1733590863048,1.08002044,3999.2,3998.9,1.000634]
[1733590863283,1.75043,3999.0,3998.9,1.000634]
[1733590863602,1.04716389,3999.4,3998.9,1.779434]
[1733590863895,2.35684584,3999.6,3998.9,1.779434]
[1733590863896,3.7861,3999.6,3998.9,1.779434]
[1733590864192,4.58885158,3999.6,3998.9,1.779434]
[1733590864847,4.58885158,3999.6,3998.9,0.7788]
[1733590865450,1.75036,3999.2,3998.6,1.779492]
[1733590865655,1.75036,3999.2,3998.6,0.7788]
[1733590866161,0.7861,3999.0,3998.3,1.000769]
[1733590866463,2.53654,3999.0,3998.2,0.7788]
[1733590867054,2.53654,3999.0,3998.2,1.779602]
[1733590868104,0.7861,3999.0,3998.2,1.779602]
[1733590868599,0.7861,3999.0,3998.2,0.7788]
[1733590869671,0.55,3998.9,3997.9,0.7788]
[1733590869872,0.80365,3998.9,3997.9,0.7788]
[1733590870191,0.55,3998.7,3997.9,0.7788]
[1733590872857,0.7861,3998.6,3997.8,0.625]
[1733590873698,0.55,3998.5,3997.8,0.625]
[1733590873898,0.55,3998.3,3997.8,0.625]
[1733590874100,0.7861,3998.2,3997.8,0.625]
[1733590875796,0.55,3998.3,3997.8,0.625]
[1733590875957,0.55,3998.4,3997.8,0.625]
[1733590877471,1.63002044,3998.2,3997.8,0.625]
[1733590877813,0.55,3998.0,3997.8,0.625]
[1733590878163,1.3361,3997.9,3997.8,0.625]
[1733590878900,2.41612044,3997.9,3997.8,0.625]
[1733590882219,0.7688,3998.2,3997.8,0.625]
[1733590882529,3.0,3998.5,3997.8,0.625]
[1733590882530,0.7688,3998.6,3997.8,0.625]
[1733590882687,4.47185998,3998.8,3997.8,0.625]
[1733590882688,0.39183954,3998.8,3997.8,0.76587]
[1733590883021,0.39183954,3998.8,3998.2,1.75075]
[1733590883223,0.39183954,3998.8,3998.1,1.75083]
[1733590883593,0.39183954,3998.8,3998.0,0.7837]
[1733590883915,0.39183954,3998.8,3998.0,2.53456]
[1733590885593,0.39183954,3998.8,3998.0,0.7837]
[1733590888394,0.79881108,3998.8,3998.0,0.7837]
[1733590889108,1.3188,3998.7,3997.8,0.625]
[1733590889316,2.39882044,3998.7,3997.8,0.625]
[1733590892337,2.39882044,3998.7,3997.8,2.37595]
[1733590892935,0.39183954,3998.8,3997.9,0.7837]
[1733590893146,0.39183954,3998.8,3998.0,0.14087]
[1733590893315,0.39183954,3998.8,3998.2,1.75078]
[1733590894413,0.39183954,3998.8,3998.1,1.75081]
[1733590895143,0.39183954,3998.8,3997.9,0.7837]
[1733590895364,0.39183954,3998.8,3998.3,1.75071]
[1733590897264,0.39183954,3998.8,3998.5,1.75065]
[1733590897558,0.39183954,3998.8,3998.5,0.958765]
[1733590897856,0.39183954,3998.8,3998.7,1.75056]
[1733590902557,0.39183954,3998.8,3998.5,2.53435]
[1733590902971,0.39183954,3998.8,3998.5,1.75065]
[1733590904929,0.39183954,3998.8,3997.8,1.4234]
[1733590905133,0.7895,3998.7,3998.1,1.75079]
[1733590906140,0.16369654,3998.6,3997.9,1.75091]